Cogmind - Beta 15 @@@ ROGUE MODE // 2025.06.28 @ 18:27:05 Player: Btuck Result: Destroyed by G3-7KV(R) with Subdweller Laser Performance ------------- Evolutions (0) 0 Regions Visited (2) 400 Robots Destroyed (28) 140 Value Destroyed (600) 600 Prototype IDs (2) 40 Alien Tech Used (0) 0 Bonus (0) 0 TOTAL SCORE: 1180 Bonus ------- None Cogmind --------- Core Integrity 0/250 Matter 283/300 Energy 88/100 System Corruption 1% Temperature Cool (6) Movement Walking (120) Location -10/Subcaves Parts ------- > --- POWER (1) -------- (None) > --- PROPULSION (2) --- Aluminum Leg > --- UTILITY (2) ------ Small Storage Unit Core Shielding (fused) > --- WEAPON (2) ------- Makeshift Sword > --- INVENTORY (8) ---- Subdweller Monowheel Seismic Detector Subdweller Machine Gun Light Cannon Light Cannon Mining Claw Peak State ------------ > --- POWER ------------ Ion Engine > --- PROPULSION ------- Aluminum Leg Aluminum Leg > --- UTILITY ---------- Small Storage Unit Core Shielding > --- WEAPON ----------- Riot Gun Makeshift Axe > --- INVENTORY -------- Light Ion Engine Subdweller Monowheel Seismic Detector Subdweller Beam Cannon Assault Rifle Light Cannon Light Cannon Mining Claw [Rating: 13] Favorites ----------- Power Ion Engine Engine Ion Engine Propulsion Aluminum Leg Leg Aluminum Leg Utility Small Storage Unit Device Seismic Detector Storage Small Storage Unit Protection Core Shielding Weapon Light Cannon Energy Gun Riot Gun Energy Cannon Subdweller Beam Cannon Ballistic Gun Assault Rifle Ballistic Cannon Light Cannon Slashing Weapon Makeshift Axe Special Melee Weapon Datajack Build | -11 -10 -10 ------- Run | Yrd Mat Sub Slots Evolved . | . . . Power . | . . . Propulsion . | . . . Utility . | . . . Weapon . | . . . Parts Attached 23 | 7 7 9 Power 4 | 1 2 1 Engine 4 | 1 2 1 Core . | . . . Reactor . | . . . Propulsion 4 | 2 2 . Treads . | . . . Leg 4 | 2 2 . Wheel . | . . . Hover . | . . . Flight . | . . . Utility 3 | 2 . 1 Device 1 | 1 . . Storage 1 | 1 . . Processor . | . . . Hackware . | . . . Protection 1 | . . 1 Artifact . | . . . Weapon 12 | 2 3 7 Energy Gun 1 | . . 1 Energy Cannon 1 | . . 1 Ballistic Gun 3 | 2 . 1 Ballistic Cannon 3 | . 2 1 Launcher . | . . . Special Weapon . | . . . Impact Weapon . | . . . Slashing Weapon 3 | . . 3 Piercing Weapon . | . . . Special Melee Weapon 1 | . 1 . Unidentified Prototypes . | . . . Parts Lost 6 | . . 6 Power 2 | . . 2 Propulsion 1 | . . 1 Utility . | . . . Weapon 3 | . . 3 Highest Loss Streak 3 | . . 3 To Critical Strikes . | . . . Average Backups 6 | 1 5 7 Power . | . 1 . Propulsion . | . . . Utility . | . 1 1 Weapon 3 | . 3 4 Tool/Special . | . . . Unused Backups 7 | . 2 5 Power . | . . . Propulsion 1 | . . 1 Utility 2 | . 2 . Weapon 4 | . . 4 Tool/Special . | . . . Average Slot Usage (%) 98 | . 100 97 Engine 13 | . 14 13 Leg 26 | . 28 26 Device 7 | . 14 2 Storage 14 | . 14 14 Protection 6 | . . 11 Energy Gun 5 | . . 9 Energy Cannon 5 | . . 8 Ballistic Gun 7 | . 13 2 Ballistic Cannon 8 | . 14 3 Slashing Weapon 1 | . . 3 Peak Build Rating 13 | 7 8 13 Average Rating 8 | 5 7 10 On Entrance 4 | . 7 7 Naked Turns . | . . . Heaviest Build 22 | 13 17 22 Greatest Support 20 | 20 20 20 Greatest Overweight (x) 1 | . . 1 Average Overweight (x) . | . . . Largest Inventory Capacity 8 | 8 8 8 Average Capacity 7 | 7 8 8 Most Carried 8 | 3 8 8 Average Carried 6 | 1 5 7 Final Capacity 8 | 8 8 8 Final Carried 8 | 3 8 6 Class Distribution -------------------- 87% | Mutant 12% | Scavenger-Mutant Dominant Class ---------------- Mutant | -10/Materials Mutant | -10/Subcaves Resources | -11 -10 -10 ----------- Run | Yrd Mat Sub Matter Collected 943 | 324 376 243 Remotely . | . . . Salvage Created 841 | 145 443 253 Parts 60 | 4 34 22 Haulers Intercepted 2 | . 2 . Recyclers Shooed . | . . . Parts Field Recycled . | . . . Retrieved Matter . | . . . Parts Self-Destructed 6 | . . 6 Prevented . | . . . Kills | -11 -10 -10 ------- Run | Yrd Mat Sub Combat Hostiles Destroyed 21 | . 15 6 Guns 6 | . 5 1 Cannons 15 | . 10 5 Classes Destroyed 7 | 2 4 1 Tunneler 2 | 2 . . Hauler 2 | . 2 . Recycler 1 | 1 . . Watcher 2 | . 2 . Swarmer 9 | . 9 . Grunt 6 | . 6 . Subdweller 6 | . . 6 Best Kill Streak 3 | 3 3 2 Combat Bots Only 3 | . 3 2 Max Kills in Single Turn 2 | 1 2 1 Gunslinging . | . . . Exploded . | . . . Melee . | . . . Uniques/NPCs Destroyed . | . . . Combat | -11 -10 -10 -------- Run | Yrd Mat Sub Hostile Shots Fired 112 | . 69 43 Missed 26 | . 14 12 Hits 86 | . 55 31 Projectile 86 | . 55 31 Critical Strikes 1 | . . 1 Damage Taken 1222 | . 488 734 Core 250 | . 69 181 Absorbed by Shields . | . . . Redirected to Shielding 35 | . . 35 Core Remaining (%) 100 | 100 . . Volleys Fired 76 | 9 43 24 Largest 2 | 2 2 2 Hottest 130 | 40 60 130 Shots Fired 151 | 18 87 46 Gun 81 | 18 40 23 Cannon 70 | . 47 23 Launcher . | . . . Special . | . . . Kinetic 140 | 18 87 35 Thermal 6 | . . 6 Explosive . | . . . Electromagnetic 5 | . . 5 Robot Hit Streak 10 | 6 10 7 Robot Miss Streak 6 | 1 6 3 Penetration Max . | . . . Secondary Targets . | . . . Shots Hit Robots 93 | 12 47 34 Core Hits 35 | 3 22 10 Critical Kills 1 | 1 . . Critical Parts Destroyed 1 | 1 . . Critical Strikes 2 | 2 . . Destroy 2 | 2 . . Melee Attacks 16 | . . 16 Impact . | . . . Slashing 16 | . . 16 Piercing . | . . . Sneak Attacks . | . . . Combat Hostiles . | . . . Follow-up Attacks . | . . . Damage Inflicted 1686 | 163 787 736 Guns 658 | 159 250 249 Cannons 829 | . 535 294 Explosions . | . . . Melee 193 | . . 193 Ramming 6 | 4 2 . Kinetic 1271 | 159 785 327 Thermal 138 | . . 138 Explosive . | . . . Electromagnetic 78 | . . 78 Impact . | . . . Slashing 193 | . . 193 Piercing . | . . . Highest Corruption 1 | . 1 1 Average Corruption 1 | . 1 1 Corruption Purged . | . . . Corruption Blocked . | . . . Effects 16 | . 5 11 Message Errors 5 | . 2 3 Matter Fused 3 | . . 3 Heat Flow Errors 1 | . . 1 Energy Discharges 3 | . 2 1 Parts Fused 1 | . . 1 Data Loss (minor) 2 | . . 2 Misfires 1 | . 1 . Overload Shots . | . . . Overflow Damage . | . . . Projectiles . | . . . Explosions . | . . . Melee . | . . . Knockbacks 4 | . 4 . Impact . | . . . Kinetic 3 | . 3 . Secondary 1 | . 1 . Self-Inflicted Damage . | . . . Shots . | . . . Rammed . | . . . Targets Rammed 2 | 1 1 . Kicked 2 | 1 1 . Crushed . | . . . Highest Temperature 315 | . 48 315 Average Temperature 62 | . 22 93 Received Heat Transfer 552 | . 102 450 Siege Activations . | . . . Martial Activations . | . . . Shielding Activations . | . . . Robots Disrupted . | . . . Combat Hostiles . | . . . Robots Corrupted . | . . . Combat Hostiles . | . . . Parts Fried . | . . . Impact Corruptions . | . . . Robots Melted . | . . . Combat Hostiles . | . . . Parts Melted . | . . . Heat Transferred 185 | . . 185 Parts Sabotaged . | . . . Parts Stolen . | . . . Parts Stripped . | . . . Power Chain Reactions . | . . . Alert | -11 -10 -10 ------- Run | Yrd Mat Sub Maximum Alert Level 1 | . 1 . Low Security (%) 97 | 100 96 . Level 1 2 | . 3 . Level 2 . | . . . Level 3 . | . . . Level 4 . | . . . Level 5 . | . . . High Security . | . . . Max Security . | . . . Peak Influence 215 | 15 215 . Initial . | . . . Average 50 | 2 56 . Influence Increases 492 | 15 477 . Destroy 0b10 Robot/C 300 | . 300 . Destroy 0b10 Robot/NC 35 | 15 20 . Destroy Leader 68 | . 68 . Successful Hack 40 | . 40 . Disable Machine 15 | . 15 . Destroy Structure 4 | . 4 . Lose Combat Pursuer 30 | . 30 . Influence Decreases 492 | 15 294 183 Entered New Map 89 | . . 89 Time Decay 403 | 15 294 94 Squads Dispatched 4 | . 4 . Investigation 3 | . 3 . Extermination . | . . . Reinforcement 1 | . 1 . Assault . | . . . Garrison . | . . . Intercept . | . . . Searches Triggered . | . . . Construction Impeded . | . . . Haulers Reinforced . | . . . Active Scanning Responses . | . . . Cargo Convoy Interrupts . | . . . Stealth | -11 -10 -10 --------- Run | Yrd Mat Sub Distress Signals . | . . . Communications Jammed . | . . . Distress Signals . | . . . Times Spotted 31 | . 23 8 Peak Tracking Total 4 | . 4 2 Tactical Retreats 1 | . 1 . Traps | -11 -10 -10 ------- Run | Yrd Mat Sub Traps Triggered 3 | . 2 1 Indirectly . | . . . Trap Hack Attempts 1 | . 1 . Triggered . | . . . Disarmed 1 | . 1 . Reprogrammed . | . . . Reused . | . . . Traps Extracted . | . . . Installed . | . . . Triggered . | . . . Machines | -11 -10 -10 ---------- Run | Yrd Mat Sub Machines Disabled 1 | . 1 . Max in Single Turn 1 | . 1 . Machines Repaired . | . . . Machines Dismantled . | . . . Machines Sabotaged . | . . . Overloaded Fab Kills . | . . . Hacking | -11 -10 -10 --------- Run | Yrd Mat Sub Machines Accessed 6 | . 6 . Terminals 6 | . 6 . Fabricators . | . . . Repair Stations . | . . . Recycling Units . | . . . Scanalyzers . | . . . Garrison Access . | . . . Total Hacks 19 | . 19 . Successful 15 | . 15 . Failed 4 | . 4 . Catastrophic . | . . . Database Lockouts . | . . . Manual 18 | . 18 . Terminals 19 | . 19 . Fabricators . | . . . Repair Stations . | . . . Recycling Units . | . . . Scanalyzers . | . . . Garrison Access . | . . . Terminal Hacks 8 | . 8 . Robot Analysis 2 | . 2 . Prototype ID Bank 1 | . 1 . Branch Access Points 1 | . 1 . Recycling Unit Index 1 | . 1 . Locate Traps 1 | . 1 . Hauler Manifests 1 | . 1 . Zone Layout 1 | . 1 . Fabricator Hacks . | . . . Repair Station Hacks . | . . . Recycling Unit Hacks . | . . . Scanalyzer . | . . . Garrison Access Hacks . | . . . Unauthorized Hacks 7 | . 7 . Terminals 7 | . 7 . Assimilate 2 | . 2 . Botnet 5 | . 5 . Fabricators . | . . . Repair Stations . | . . . Recycling Units . | . . . Scanalyzers . | . . . Garrison Access . | . . . Data Cores Recovered . | . . . Used . | . . . Hacking Detections 5 | . 5 . Full Trace Events 4 | . 4 . Feedback Events . | . . . Feedback Blocked . | . . . Robot Schematics Acquired . | . . . Robots Built . | . . . Authchips . | . . . Time . | . . . Total Robot Build Rating . | . . . Part Schematics Acquired . | . . . Parts Built . | . . . Authchips . | . . . Time . | . . . Total Part Build Rating . | . . . Parts Repaired . | . . . Time . | . . . Parts Recycled . | . . . Recycled Matter . | . . . Retrieved Matter . | . . . Retrieved Components . | . . . Parts Scanalyzed . | . . . Part Schematics Acquired . | . . . Parts Damaged . | . . . Bothacking | -11 -10 -10 ------------ Run | Yrd Mat Sub Used RIF Installer . | . . . Robots Hacked . | . . . Non-combat . | . . . Combat . | . . . Robot Hacks Applied . | . . . Relay Couplers Released . | . . . Fabnet Peak Effective % . | . . . Robots Rewired . | . . . Allies Hacked . | . . . Hacks Repelled . | . . . Allies | -11 -10 -10 -------- Run | Yrd Mat Sub Total Allies . | . . . Largest Group . | . . . Highest-Rated Group . | . . . Highest-Rated Ally . | . . . Total Orders . | . . . Ally Attacks . | . . . Total Damage . | . . . Kills . | . . . Allies Corrupted . | . . . Allies Melted . | . . . Intel | -11 -10 -10 ------- Run | Yrd Mat Sub Active Infowar (turns) 978 | 28 761 189 Seismic 978 | 28 761 189 Robot Analysis Total 2 | . 2 . Derelict Logs Recovered 1 | . . 1 Drone Launches . | . . . Drone Recoveries . | . . . Exploration | -11 -10 -10 ------------- Run | Yrd Mat Sub Turns Passed 2004 | 106 761 1137 Spaces Moved 1144 | 58 486 600 Core 7 | 7 . . Treads . | . . . Legs 1137 | 51 486 600 Wheels . | . . . Hover . | . . . Flight . | . . . Fastest Speed 50 | 50 120 120 Average Speed 144 | 111 120 167 Slowest Speed 190 | 120 120 190 Overloaded Moves . | . . . Propulsion Burnouts . | . . . Robots Hopped . | . . . Potential Cave-ins . | . . . Cave-ins Triggered . | . . . Exploration Rate (%) 39 | 6 76 36 Regions Visited 2 Branch Regions 1 Pre-discovered Areas . | . . . Known Exits Taken . | . . . Unknown Exits Taken 2 | 1 1 . Scrap Searched 8 | . . 8 Spaces Dug 6 | . . 6 Terrain Destroyed 7 | . . 7 Melee 6 | . . 6 Projectile 1 | . . 1 AOE . | . . . Terrain Rammed . | . . . Walls Destroyed . | . . . Machines Disabled . | . . . Actions | -11 -10 -10 --------- Run | Yrd Mat Sub Total 1326 | 77 581 668 Wait 31 | . 25 6 Move 1142 | 57 485 600 Hop . | . . . Pick Up 15 | 3 7 5 Fast Attach 11 | 7 2 2 Attach 3 | . 1 2 Detach 3 | . 3 . Swap 12 | . 5 7 Drop 14 | . 8 6 Fire 76 | 9 43 24 Melee 16 | . . 16 Ram . | . . . Kick 2 | 1 1 . Crush . | . . . Escape Stasis . | . . . Rewire . | . . . Trap 1 | . 1 . Miscellaneous . | . . . Route ------- -11/Scrapyard -10/Materials (discovered 3 exits: [*Mat] / *Min / [*Sub]) -10/Subcaves History --------- Turn | Location | Event 42 | -11/Scrapyard | Discovered new exit (range 15) 107 | -11/Scrapyard | Entered Materials 317 | -10/Materials | Build established: Mutant 434 | -10/Materials | Discovered new exit (range 14) 711 | -10/Materials | Identified exit to Mines 834 | -10/Materials | Discovered new exit (range 12) 844 | -10/Materials | Discovered new exit (range 10) 868 | -10/Materials | Entered Subcaves 870 | -10/Subcaves | Learned Materials emergency access door positions 1746 | -10/Subcaves | Core integrity fell below 50% 1832 | -10/Subcaves | Ambushed by Subdwellers from Twisted Machinery 1839 | -10/Subcaves | Core integrity fell below 20% 1962 | -10/Subcaves | Shifting Twisted Machinery released Mak. Sword 1965 | -10/Subcaves | Shifting Twisted Machinery released Flamer 2005 | -10/Subcaves | Destroyed by G3-7KV(R) with Subdweller Laser Last Messages --------------- 01855_ Aluminum Leg destroyed. 01857_ Z6-CW0(R) destroyed. 01862_ System corrupted: Component data lost. 01866_ 2E-28B(R) destroyed. 01878_ Acquired 45 matter. 01880_ Acquired 3 matter. 01884_ System corrupted: Matter fused (-7). 01884_ Acquired Sub. Machine Gun. 01889_ Acquired 30 matter. 01896_ Acquired 6 matter. 01940_ System corrupted: Component data lost. 01961_ System corrupted: Core Shielding fused. Mak. Sword falls loose from the Twisted Machinery. Flamer falls loose from the Twisted Machinery. 01989_ Barrage Gun destroyed. 01994_ Lgt. Ion Engine destroyed. 01998_ Destroyed Scrap Shield. 02000_ Mak. Axe destroyed. 02003_ Acquired Mak. Sword. Map ----- +----------------------------------------------------+ | ?? ?## ####### " #?? | | # ## # "" ## "" #?? | | # ##??? " "" "" #?? | | # #???????# "" "" #?? | | # #?????????# " "" "" ## #? | | ## #####?????????## ##" ## "## #?# #? | | ?####?????????????# ### ####### ## ##????#? | | ??????????????????# #" """#??## ##?#####??????? | | ???????????????????# " ""##???###?????????????? | | ??????????????????# ## """##???????????????????? | | ???????????????????### """#???????????????????? | | ?????????????????????## "##???????????????????? | | #?????????????????????#"" #????????????????????? | | ###????????????????????###" ##???????????????????? | | ???????????????????????#" " #???????????????????? | | ???????????????????????#" ##???????????????????? | | ???????????????????????#"" ##????????????????????? | | ?????????????????????#?##" ##????????????????????? | | ?????????????????? ### ?#"" ##???????????????????? | | ??????????????????? ##"" #???????????????????? | | ?????????????????????|"""""" #???????????????????? | | ??????????????????????#"""" #???????????????????? | | ??????????????????????## " ##???????????????????? | | ???????????????????????## ##????????????????????? | | ???????????????????????#R" #?????????????????????? | | ???????????????????????##@ #?????????????????????? | | ???????????????????????# " #????????????????????? | | ?????????????????????? % ##????????????????????? | | ????????????????????? ?????????????????????? | | ???????????????????? #????????????????????? | | ?????????????????? #????????????????????? | | ????????????????? #????????????????????? | | ???????????????? #????????????????????? | | ???????????????# ##????????????????????? | | ???????????????#### #?????????????????????? | | ??????????????????## ## #?????????????????????? | | ???????????????????##?## ###?????????????????????? | | ???????????????????????##????????????????????????? | | ?????????????????????????????????????????????????? | | ?????????????????????????????????????????????????? | | ?????????????????????????????????????????????????? | | ?????????????????????????????????????????????????? | | ?????????????????????????????????????????????????? | | ?????????????????????????????????????????????????? | | ?????????????????????????????????????????????????? | | ?????????????????????????????????????????????????? | | ?????????????????????????????????????????????????? | | ?????????????????????????????????????????????????? | | ?????????????????????????????????????????????????? | | ?????????????????????????????????????????????????? | +----------------------------------------------------+ Best States ------------- Heat Dissipation 25 Energy Generation 10 Energy Capacity 250 Matter Stores 300 Matter Capacity 300 Sight Range 16 Terrain Scan Density 10 Core Shielding 20 Evasion (%) 55 Item Schematics ----------------- None Robot Schematics ------------------ None Fabricated ------------ Nothing Repaired ---------- Nothing Alien Tech Used ----------------- None Achievements -------------- None Challenges ------------ None Game ------ Seed PowerHugeCorpse Manual? 0 Play Time 00:18:42 Cumulative 77.4 hours Start 2025.06.28 @ 18:11:16 End 2025.06.28 @ 18:27:05 Sessions 1 Manual Loads 0 Difficulty Rogue Special Mode None Game No. 105 Rogue 105 Adventurer 0 Explorer 0 Win Type - Total 1 Types 1/0/0/0/0/0/0/0/0/0 Lore% 40 Gallery% 42 Achievement% 39 Wizard Run 0 Options --------- Layout 2 ASCII 0 Keyboard 1 Movement Numpad Keybinds 0 Fullscreen 1 Font 32/Swanston Map View 50x44 Zoom Use 0% Tactical HUD 1 Map Filters NONE Filters NONE Steam 1 RUN: 98b6b8c9-5f78-47cc-ab98-888ff455cc77